fUSD/lending_fUSD_20240530
["ID","MTS","AMOUNT","RATE_DAILY","PERIOD"]
[328258214,1717111850298,-500.0,0.00032876,7]
[328258215,1717111850307,-500.0,0.00032876,7]
[328258216,1717111850316,-500.0,0.00032876,7]
[328258217,1717111850325,-500.0,0.00032876,7]
[328258218,1717111850335,-500.0,0.00032876,7]
[328258219,1717111850344,-519.02372778,0.00032876,7]
[328258220,1717111850353,-500.0,0.00032876,7]
[328258221,1717111850362,-533.3473744,0.00032876,7]
[328258222,1717111850371,-151.0,0.00032876,7]
[328258223,1717111850380,-500.0,0.00032876,7]
[328258224,1717111850390,-500.0,0.00032876,7]
[328258225,1717111850400,-151.0,0.00032876,7]
[328258226,1717111850409,-500.0,0.00032876,7]
[328258227,1717111850418,-500.0,0.00032876,7]
[328258228,1717111850428,-513.71221434,0.00032876,7]
[328258229,1717111850437,-500.0,0.00032876,7]
[328258230,1717111850446,-500.0,0.00032876,7]
[328258231,1717111850455,-500.0,0.00032876,7]
[328258232,1717111850465,-500.0,0.00032876,7]
[328258233,1717111850474,-500.0,0.00032876,7]
[328258234,1717111850484,-510.4380601,0.00032876,7]
[328258235,1717111850494,-151.0,0.00032876,7]
[328258236,1717111850503,-500.0,0.00032876,7]
[328258237,1717111850512,-151.0,0.00032876,7]
[328258238,1717111850522,-500.0,0.00032876,7]
[328258239,1717111850531,-510.81386244,0.00032876,7]
[328258240,1717111850541,-443.02489921,0.00032876,7]
[328258241,1717111850551,-500.0,0.00032876,7]
[328258242,1717111850560,-500.0,0.00032876,7]
[328258243,1717111850570,-500.0,0.00032876,7]
[328258244,1717111850579,-500.0,0.00032876,7]
[328258245,1717111850589,-500.0,0.00032876,7]
[328258246,1717111850598,-500.0,0.00032876,7]
[328258247,1717111850607,-500.0,0.00032876,7]
[328258248,1717111850616,-500.0,0.00032876,7]
[328258249,1717111850626,-500.0,0.00032876,7]
[328258250,1717111850635,-500.0,0.00032876,7]
[328258251,1717111850644,-500.0,0.00032876,7]
[328258252,1717111850654,-151.0,0.00032876,7]
[328258253,1717111850663,-500.0,0.00032876,7]
[328258254,1717111850672,-500.0,0.00032876,7]
[328258255,1717111850681,-500.0,0.00032876,7]
[328258256,1717111850691,-500.0,0.00032876,7]
[328258257,1717111850700,-510.34507415,0.00032876,7]
[328258258,1717111850710,-500.0,0.00032876,7]
[328258259,1717111850719,-500.0,0.00032876,7]
[328258260,1717111850728,-500.0,0.00032876,7]
[328258261,1717111850737,-500.0,0.00032876,7]
[328258262,1717111850747,-519.17588792,0.00032876,7]
[328258263,1717111850757,-500.0,0.00032876,7]
[328258264,1717111850767,-500.0,0.00032876,7]
[328258265,1717111850776,-500.0,0.00032876,7]
[328258266,1717111850785,-500.0,0.00032876,7]
[328258267,1717111850795,-512.60751794,0.00032876,7]
[328258268,1717111850804,-500.0,0.00032876,7]
[328258269,1717111850814,-500.0,0.00032876,7]
[328258270,1717111850823,-514.23881316,0.00032876,7]
[328258271,1717111850833,-517.20184901,0.00032876,7]
[328258272,1717111850843,-500.0,0.00032876,7]
[328258273,1717111850852,-500.0,0.00032876,7]
[328258274,1717111850861,-500.0,0.00032876,7]
[328258275,1717111850871,-500.0,0.00032876,7]
[328258276,1717111850880,-523.36202872,0.00032876,7]
[328258277,1717111850890,-524.34645909,0.00032876,7]
[328258278,1717111850899,-520.70819257,0.00032876,7]
[328258279,1717111850908,-500.0,0.00032876,7]
[328258280,1717111850918,-151.0,0.00032876,7]
[328258281,1717111850927,-500.0,0.00032876,7]
[328258282,1717111850936,-500.0,0.00032876,7]
[328258283,1717111850945,-500.0,0.00032876,7]
[328258284,1717111850955,-500.0,0.00032876,7]
[328258285,1717111850965,-500.0,0.00032876,7]
[328258286,1717111850975,-500.0,0.00032876,7]
[328258287,1717111850984,-500.0,0.00032876,7]
[328258288,1717111850994,-500.0,0.00032876,7]
[328258289,1717111851003,-500.0,0.00032876,7]
[328258290,1717111851013,-500.0,0.00032876,7]
[328258291,1717111851022,-500.0,0.00032876,7]
[328258292,1717111851032,-500.0,0.00032876,7]
[328258293,1717111851042,-500.0,0.00032876,7]
[328258294,1717111851051,-500.0,0.00032876,7]
[328258295,1717111851060,-549.10311725,0.00032876,7]
[328258296,1717111851070,-500.0,0.00032876,7]
[328258297,1717111851084,-500.0,0.00032876,7]
[328258298,1717111851093,-500.0,0.00032876,7]
[328258299,1717111851103,-500.0,0.00032876,7]
[328258300,1717111851112,-220.45777412,0.00032876,7]
[328258301,1717111851123,-514.57128499,0.00032876,7]
[328258302,1717111851132,-500.0,0.00032876,7]
[328258303,1717111851143,-150.0,0.00032876,7]
[328258304,1717111851153,-500.0,0.00032876,7]
[328258305,1717111851162,-500.0,0.00032876,7]
[328258306,1717111851172,-500.0,0.00032876,7]
[328258307,1717111851181,-500.0,0.00032876,7]
[328258308,1717111851190,-500.0,0.00032876,7]
[328258309,1717111851200,-500.0,0.00032876,7]
[328258310,1717111851209,-500.0,0.00032876,7]
[328258311,1717111851218,-500.0,0.00032876,7]
[328258312,1717111851227,-510.7292257,0.00032876,7]
[328258313,1717111851237,-500.0,0.00032876,7]
[328258314,1717111851246,-500.0,0.00032876,7]
[328258315,1717111851255,-500.0,0.00032876,7]
[328258316,1717111851265,-500.0,0.00032876,7]
[328258317,1717111851274,-500.0,0.00032876,7]
[328258318,1717111851283,-500.0,0.00032876,7]
[328258319,1717111851293,-562.02827695,0.00032876,7]
[328258320,1717111851302,-500.0,0.00032876,7]
[328258321,1717111851312,-500.0,0.00032876,7]
[328258322,1717111851321,-500.0,0.00032876,7]
[328258323,1717111851330,-515.08781558,0.00032876,7]
[328258324,1717111851340,-500.0,0.00032876,7]
[328258325,1717111851349,-500.0,0.00032876,7]
[328258326,1717111851358,-500.0,0.00032876,7]
[328258327,1717111851367,-500.0,0.00032876,7]
[328258328,1717111851376,-500.0,0.00032876,7]
[328258329,1717111851385,-500.0,0.00032876,7]
[328258330,1717111851397,-500.0,0.00032876,7]
[328258331,1717111851406,-500.0,0.00032876,7]
[328258332,1717111851415,-500.0,0.00032876,7]
[328258333,1717111851424,-500.0,0.00032876,7]
[328258334,1717111851433,-500.0,0.00032876,7]
[328258335,1717111851442,-500.0,0.00032876,7]
[328258336,1717111851451,-500.0,0.00032876,7]
[328258337,1717111851461,-500.0,0.00032876,7]
[328258338,1717111851469,-500.0,0.00032876,7]
[328258339,1717111851478,-500.0,0.00032876,7]
[328258340,1717111851488,-500.0,0.00032876,7]
[328258341,1717111851497,-500.0,0.00032876,7]
[328258342,1717111851506,-504.63,0.00032876,7]
[328258343,1717111851515,-500.0,0.00032876,7]
[328258344,1717111851525,-500.0,0.00032876,7]
[328258345,1717111851534,-500.0,0.00032876,7]
[328258346,1717111851544,-509.47653397,0.00032876,7]
[328258347,1717111851553,-500.0,0.00032876,7]
[328258348,1717111851562,-624.93655599,0.00032876,7]
[328258349,1717111851571,-500.0,0.00032876,7]
[328258350,1717111851580,-610.01,0.00032876,7]
[328258351,1717111851590,-500.0,0.00032876,7]
[328258352,1717111851599,-500.0,0.00032876,7]
[328258353,1717111851608,-711.26,0.00032876,7]
[328258354,1717111851617,-711.26,0.00032876,7]
[328258355,1717111851627,-500.0,0.00032876,7]
[328258356,1717111851636,-711.26,0.00032876,7]
[328258357,1717111851646,-711.26,0.00032876,7]
[328258358,1717111851655,-711.26,0.00032876,7]
[328258359,1717111851665,-711.26,0.00032876,7]
[328258360,1717111851675,-711.26,0.00032876,7]
[328258361,1717111851684,-711.26,0.00032876,7]
[328258362,1717111851693,-711.26,0.00032876,7]
[328258363,1717111851702,-522.54302007,0.00032876,7]
[328258364,1717111851712,-500.0,0.00032876,7]
[328258365,1717111851721,-711.26,0.00032876,7]
[328258366,1717111851731,-711.26,0.00032876,7]
[328258367,1717111851741,-711.26,0.00032876,7]
[328258368,1717111851751,-711.26,0.00032876,7]
[328258369,1717111851760,-711.26,0.00032876,7]
[328258370,1717111851769,-711.26,0.00032876,7]
[328258371,1717111851779,-711.26,0.00032876,7]
[328258372,1717111851788,-500.0,0.00032876,7]
[328258373,1717111851798,-711.26,0.00032876,7]
[328258374,1717111851807,-711.26,0.00032876,7]
[328258375,1717111851817,-711.26,0.00032876,7]
[328258376,1717111851827,-711.26,0.00032876,7]
[328258377,1717111851836,-711.26,0.00032876,7]
[328258378,1717111851846,-711.26,0.00032876,7]
[328258379,1717111851855,-711.26,0.00032876,7]
[328258380,1717111851864,-711.43149449,0.00032876,7]
[328258381,1717111851873,-500.0,0.00032876,7]
[328258382,1717111851883,-500.0,0.00032876,7]
[328258383,1717111851893,-500.0,0.00032876,7]
[328258384,1717111851902,-595.96347972,0.00032876,7]
[328258385,1717111851912,-500.0,0.00032876,7]
[328258386,1717111851921,-500.0,0.00032876,7]
[328258387,1717111851931,-500.0,0.00032876,7]
[328258388,1717111851940,-500.0,0.00032876,7]
[328258389,1717111851950,-500.0,0.00032876,7]
[328258390,1717111851960,-500.0,0.00032876,7]
[328258391,1717111851970,-500.0,0.00032876,7]
[328258392,1717111851979,-500.0,0.00032876,7]
[328258393,1717111851989,-243.31888598,0.00032876,7]
[328258394,1717111852307,-256.68111402,0.00032876,7]
[328258395,1717111852317,-500.0,0.00032876,7]
[328258396,1717111852326,-500.0,0.00032876,7]
[328258397,1717111852336,-500.0,0.00032876,7]
[328258398,1717111852346,-500.0,0.00032876,7]
[328258399,1717111852355,-522.73,0.00032876,7]
[328258400,1717111852364,-522.73,0.00032876,7]
[328258401,1717111852374,-522.73,0.00032876,7]
[328258402,1717111852383,-500.0,0.00032876,7]
[328258403,1717111852394,-522.73,0.00032876,7]
[328258404,1717111852403,-522.73,0.00032876,7]
[328258405,1717111852413,-522.73,0.00032876,7]
[328258406,1717111852422,-500.0,0.00032876,7]
[328258407,1717111852432,-522.73,0.00032876,7]
[328258408,1717111852441,-525.45756022,0.00032876,7]
[328258409,1717111852451,-522.73,0.00032876,7]
[328258410,1717111852460,-500.0,0.00032876,7]
[328258411,1717111852470,-522.73,0.00032876,7]
[328258412,1717111852479,-522.73,0.00032876,7]
[328258413,1717111852489,-500.0,0.00032876,7]
[328258414,1717111852498,-522.73,0.00032876,7]
[328258415,1717111852507,-500.0,0.00032876,7]
[328258416,1717111852517,-522.73,0.00032876,7]
[328258417,1717111852526,-522.73,0.00032876,7]
[328258418,1717111852536,-522.73,0.00032876,7]
[328258419,1717111852545,-522.73,0.00032876,7]
[328258420,1717111852555,-522.73,0.00032876,7]
[328258421,1717111852564,-500.0,0.00032876,7]
[328258422,1717111852573,-522.73,0.00032876,7]
[328258423,1717111852584,-522.73,0.00032876,7]
[328258424,1717111852593,-500.0,0.00032876,7]
[328258425,1717111852603,-522.73,0.00032876,7]
[328258426,1717111852612,-522.73,0.00032876,7]
[328258427,1717111852621,-522.73,0.00032876,7]
[328258428,1717111852631,-522.73,0.00032876,7]
[328258429,1717111852641,-522.73,0.00032876,7]
[328258430,1717111852650,-500.0,0.00032876,7]
[328258431,1717111852660,-500.0,0.00032876,7]
[328258432,1717111852670,-522.79117911,0.00032876,7]
[328258433,1717111852679,-500.0,0.00032876,7]
[328258434,1717111852689,-504.03568829,0.00032876,7]
[328258435,1717111852698,-500.0,0.00032876,7]
[328258436,1717111852708,-500.0,0.00032876,7]
[328258437,1717111852717,-500.0,0.00032876,7]
[328258438,1717111852727,-500.0,0.00032876,7]
[328258439,1717111852736,-500.0,0.00032876,7]
[328258440,1717111852746,-500.0,0.00032876,7]
[328258441,1717111852756,-154.883462,0.00032876,7]
[328258442,1717111852766,-500.0,0.00032876,7]
[328258443,1717111852775,-500.0,0.00032876,7]
[328258444,1717111852785,-500.0,0.00032876,7]
[328258445,1717111852794,-500.0,0.00032876,7]
[328258446,1717111852804,-515.60891885,0.00032876,7]
[328258447,1717111852814,-500.0,0.00032876,7]
[328258448,1717111852825,-500.0,0.00032876,7]
[328258449,1717111852835,-500.0,0.00032876,7]
[328258450,1717111852844,-500.0,0.00032876,7]
[328258451,1717111852854,-554.49464496,0.00032876,7]
[328258452,1717111852864,-500.0,0.00032876,7]
[328258453,1717111852874,-500.0,0.00032876,7]
[328258454,1717111852884,-500.0,0.00032876,7]
[328258455,1717111852895,-500.0,0.00032876,7]
[328258456,1717111852905,-500.0,0.00032876,7]
[328258457,1717111852915,-507.72110992,0.00032876,7]
[328258458,1717111852925,-500.0,0.00032876,7]
[328258459,1717111852934,-500.0,0.00032876,7]
[328258460,1717111852944,-500.0,0.00032876,7]
[328258461,1717111852954,-500.0,0.00032876,7]
[328258462,1717111852964,-500.0,0.00032876,7]
[328258463,1717111852973,-491.32800039,0.00032876,7]
[328258464,1717111852982,-500.0,0.00032876,7]
[328258465,1717111852992,-510.52180114,0.00032876,7]
[328258466,1717111853002,-500.0,0.00032876,7]
[328258467,1717111853011,-489.96565811,0.00032876,7]
[328258468,1717111853032,-31.35224633,0.00032876,7]
[328258469,1717111853042,-500.0,0.00032876,7]
[328258470,1717111853052,-511.7232081,0.00032876,7]
[328258471,1717111853062,-517.31431292,0.00032876,7]
[328258472,1717111853073,-500.0,0.00032876,7]
[328258473,1717111853085,-517.69276055,0.00032876,7]
[328258474,1717111853095,-567.72210377,0.00032876,7]
[328258475,1717111853104,-500.0,0.00032876,7]
[328258476,1717111853114,-504.89501778,0.00032876,7]
[328258477,1717111853126,-500.0,0.00032876,7]
[328258478,1717111853135,-500.0,0.00032876,7]
[328258479,1717111853145,-500.0,0.00032876,7]
[328258480,1717111853157,-500.0,0.00032876,7]
[328258481,1717111853168,-500.0,0.00032876,7]
[328258482,1717111853178,-500.0,0.00032876,7]
[328258483,1717111853188,-513.86663262,0.00032876,7]
[328258484,1717111853197,-500.0,0.00032876,7]
[328258485,1717111853207,-500.0,0.00032876,7]
[328258486,1717111853216,-500.0,0.00032876,7]
[328258487,1717111853226,-500.0,0.00032876,7]
[328258488,1717111853235,-500.0,0.00032876,7]
[328258489,1717111853245,-500.0,0.00032876,7]
[328258490,1717111853255,-500.0,0.00032876,7]
[328258491,1717111853264,-500.0,0.00032876,7]
[328258492,1717111853273,-500.0,0.00032876,7]
[328258493,1717111853283,-500.0,0.00032876,7]
[328258494,1717111853292,-500.0,0.00032876,7]
[328258495,1717111853302,-500.0,0.00032876,7]
[328258496,1717111853312,-500.0,0.00032876,7]
[328258497,1717111853321,-500.0,0.00032876,7]
[328258498,1717111853331,-350.00046505,0.00032876,7]
[328258499,1717111853358,-149.99953495,0.00032876,7]
[328258500,1717111853367,-500.0,0.00032876,7]
[328258501,1717111853378,-360.15024392,0.00032876,7]
[328258502,1717111853387,-500.0,0.00032876,7]
[328258503,1717111853398,-500.0,0.00032876,7]
[328258504,1717111853408,-529.72671548,0.00032876,7]
[328258505,1717111853418,-500.0,0.00032876,7]
[328258506,1717111853427,-500.0,0.00032876,7]
[328258507,1717111853437,-500.0,0.00032876,7]
[328258508,1717111853447,-500.0,0.00032876,7]
[328258509,1717111853456,-518.67966492,0.00032876,7]
[328258510,1717111853466,-500.0,0.00032876,7]
[328258511,1717111853475,-542.12363265,0.00032876,7]
[328258512,1717111853485,-500.0,0.00032876,7]
[328258513,1717111853495,-500.0,0.00032876,7]
[328258514,1717111853504,-500.0,0.00032876,7]
[328258515,1717111853514,-500.0,0.00032876,7]
[328258516,1717111853524,-526.38059258,0.00032876,7]
[328258517,1717111853533,-500.0,0.00032876,7]
[328258518,1717111853543,-178.32882296,0.00032876,7]
[328258519,1717111853553,-500.0,0.00032876,7]
[328258520,1717111853563,-500.0,0.00032876,7]
[328258521,1717111853755,-500.0,0.00032876,7]
[328258522,1717111853766,-54.28679251,0.00032876,7]
[328258523,1717111853781,-445.71320749,0.00032876,7]
[328258524,1717111853790,-196.58994342,0.00032876,7]
[328258525,1717111853801,-303.41005658,0.00032876,7]
[328258526,1717111853811,-262.35494343,0.00032876,7]
[328258527,1717111853899,-744.01,0.00032865,10]
[328258528,1717111853909,-271.75128348,0.00032876,7]
[328258529,1717111853919,-518.66658546,0.00032876,7]
[328258530,1717111853928,-500.0,0.00032876,7]
[328258531,1717111853938,-572.50313001,0.00032876,7]
[328258532,1717111853946,-500.0,0.00032876,7]
[328258533,1717111853955,-58.26008953,0.00032876,7]
[328258534,1717111854047,-1046.05201815,0.00023678,2]
[328258535,1717111854059,-1208.38427786,0.00023678,2]
[328258536,1717111854078,-2005.95775892,0.00023678,2]
[328258537,1717111854088,-211.0,0.00027187,2]
[328258538,1717111854098,-2672.54545053,0.00032865,2]
[328258539,1717111854110,-2259.52640817,0.00032865,2]
[328258540,1717111854120,-469.18836423,0.00032875,2]
[328258541,1717111854133,-332.36166675,0.00032875,2]
[328258542,1717111854144,-297.92646669,0.00032875,4]
[328258543,1717111854155,-441.73991047,0.00032876,7]
[328258544,1717111854165,-500.0,0.00032876,7]
[328258545,1717111854175,-551.14,0.00032876,7]
[328258546,1717111854184,-500.0,0.00032876,7]
[328258547,1717111854194,-151.0,0.00032876,7]
[328258548,1717111854203,-500.0,0.00032876,7]
[328258549,1717111854213,-502.45762438,0.00032876,7]
[328258550,1717111854223,-500.0,0.00032876,7]
[328258551,1717111854233,-57.61611766,0.00032876,7]
[328258552,1717111854246,-93.38388234,0.00032876,7]
[328258553,1717111854255,-199.16,0.00032876,7]
[328258554,1717111854265,-67.90435849,0.00032876,7]
[328258555,1717111854277,-432.09564151,0.00032876,7]
[328258556,1717111854287,-70.04188115,0.00032876,7]
[328258558,1717112751165,-287.98921416,0.000125,2]
[328258559,1717112751185,-527.04420679,0.00017259,2]
[328258560,1717112751204,-1794.60217523,0.000192,2]
[328258562,1717112834123,-1915.39782477,0.000192,2]
[328258563,1717112834145,-863.06900647,0.00021914,2]
[328258564,1717112834165,-634.50759008,0.00021915,2]
[328258565,1717112834186,-450.81,0.00021916,2]
[328258566,1717112834207,-168.5,0.00021918,2]
[328258567,1717112834228,-150.99,0.00021918,2]
[328258568,1717112834248,-701.953689,0.0002346,2]
[328258569,1717112834269,-300.0,0.00023578,2]
[328258570,1717112834289,-1000.0,0.00023677,2]
[328258571,1717112834310,-4720.58864323,0.00023678,2]
[328258622,1717113031527,-1030.075676,0.00023678,2]
[328258626,1717113031580,-330.79,0.00023678,2]
[328258627,1717113031592,-979.38,0.00023678,2]
[328258628,1717113031604,-1740.84180232,0.00023678,2]
[328258629,1717113031614,-225.26,0.00024384,2]
[328258630,1717113031624,-226.4347966,0.00024656,2]
[328258631,1717113031633,-1050.0,0.00025,2]
[328258632,1717113031643,-1100.0,0.00027,2]
[328258633,1717113031652,-357.0,0.00027188,2]
[328258634,1717113031662,-1433.62,0.00027188,2]
[328258635,1717113031671,-235.31554738,0.00027188,2]
[328258636,1717113031683,-105.68445262,0.00027188,2]
[328258637,1717113031693,-894.774,0.00027188,2]
[328258638,1717113031702,-19.91336927,0.0002739,2]
[328258639,1717113031733,-785.34191743,0.0002739,2]
[328258640,1717113031743,-226.02454329,0.00028,2]
[328258641,1717113031756,-163.66,0.00028507,2]
[328258642,1717113031766,-521.07353928,0.00029196,3]
[328258643,1717113031777,-341.99546719,0.00029196,3]
[328258644,1717113031786,-2051.96615826,0.00029197,2]
[328258645,1717113031798,-256.844291,0.00029198,2]
[328258646,1717113031807,-160.202336,0.00029198,2]
[328258647,1717113031816,-256.844291,0.00029563,2]
[328258648,1717113031825,-3886.30484841,0.00029586,2]
[328258649,1717113031837,-225.37029981,0.00029587,3]
[328258650,1717113031846,-250.0,0.00029636,2]
[328258652,1717113031857,-178.25893544,0.00029702,2]
[328258654,1717113031867,-155.05514933,0.00029835,2]
[328258656,1717113031876,-218.1886871,0.00029835,2]
[328258658,1717113031885,-196.82,0.00029918,2]
[328258659,1717113031894,-256.844291,0.00029928,2]
[328258661,1717113031903,-178.25893544,0.00029971,2]
[328258663,1717113031912,-200.0,0.0003,2]
[328258664,1717113031921,-166.83499667,0.00030069,7]
[328258665,1717113031930,-150.0,0.000301,2]
[328258666,1717113031940,-151.0,0.00030234,7]
[328258667,1717113031949,-256.844291,0.00030293,2]
[328258668,1717113031959,-225.26,0.0003031,2]
[328258669,1717113031968,-600.0,0.00030383,2]
[328258670,1717113031978,-160.1856381,0.00030459,7]
[328258671,1717113031987,-252.20304281,0.000305,20]
[328258672,1717113031996,-166.66666666,0.00030505,7]
[328258673,1717113032005,-178.25893544,0.00030552,7]
[328258674,1717113032014,-154.04660684,0.00030583,7]
[328258675,1717113032023,-155.05514933,0.00030603,7]
[328258676,1717113032033,-154.3670907,0.00030621,7]
[328258677,1717113032042,-256.844291,0.00030658,2]
[328258678,1717113032051,-160.202336,0.00030658,2]
[328258679,1717113032060,-2949.70883636,0.000307,2]
[328258680,1717113032072,-5563.52123378,0.000307,2]
[328258681,1717113032084,-670.78694448,0.000307,2]
[328258682,1717113032095,-440.28115347,0.000307,2]
[328258686,1717113037528,-567.6803,0.000307,2]
[328258687,1717113037541,-1492.0,0.000307,2]
[328258688,1717113037552,-3140.10265864,0.000307,2]
[328258689,1717113037639,-26150.16798443,0.000307,2]
[328258690,1717113037650,-20065.00936032,0.000307,2]
[328258691,1717113037662,-11240.39953452,0.000307,2]
[328258692,1717113037694,-250.0,0.000307,2]
[328258693,1717113037758,-31701.1853092,0.000307,2]
[328258694,1717113037769,-5288.75929906,0.000307,2]
[328258695,1717113037809,-136939.6499628,0.000307,2]
[328258696,1717113037821,-7408.94695141,0.000307,2]
[328258697,1717113037834,-666.23816241,0.000307,2]
[328258903,1717113040602,-256287.90174937,0.000307,2]
[328258904,1717113040612,-152.26216797,0.00030729,7]
[328258905,1717113040621,-158.15637615,0.00030757,7]
[328258906,1717113040630,-154.65048425,0.00030761,7]
[328258907,1717113040639,-163.66,0.00030771,2]
[328258908,1717113040648,-340.79441508,0.00030801,7]
[328258909,1717113040657,-178.25893544,0.00030897,7]
[328258910,1717113040666,-178.25893544,0.00030925,7]
[328258911,1717113040676,-250.0,0.00031,20]
[328258912,1717113040685,-154.3670907,0.00031019,7]
[328258913,1717113040695,-340.79441508,0.00031039,7]
[328258914,1717113040705,-178.25893544,0.00031056,7]
[328258915,1717113040715,-169.1813528,0.00031098,7]
[328258916,1717113040724,-178.25893544,0.00031133,7]
[328258917,1717113040733,-218.1886871,0.00031188,7]
[328258918,1717113040744,-356.71107853,0.00031304,2]
[328258919,1717113040757,-166.66666666,0.00031305,7]
[328258920,1717113040767,-155.08870371,0.00031382,7]
[328258921,1717113040776,-218.1886871,0.00031448,7]
[328258922,1717113040785,-164.32334778,0.00031502,7]
[328258923,1717113040796,-170.40276079,0.00031731,7]
[328258924,1717113040805,-151.0,0.00031767,7]
[328258925,1717113040815,-155.08870371,0.00031772,7]
[328258926,1717113040824,-178.25893544,0.00031859,7]
[328258927,1717113040834,-154.3670907,0.00031883,7]
[328258928,1717113040845,-178.25893544,0.00031924,7]
[328258929,1717113040855,-155.43161688,0.00031941,7]
[328258930,1717113040864,-154.3670907,0.00031973,7]
[328258931,1717113040873,-340.79441508,0.00032114,7]
[328258932,1717113040883,-218.1886871,0.00032269,7]
[328258933,1717113040892,-178.25893544,0.00032507,7]
[328258934,1717113040901,-153.09589596,0.00032515,7]
[328258935,1717113040910,-178.25893544,0.00032586,7]
[328258936,1717113040919,-500.0,0.00032613,2]
[328258937,1717113040929,-200.0,0.00032613,2]
[328258938,1717113040938,-170.58240984,0.00032627,7]
[328258939,1717113040948,-178.25893544,0.00032679,7]
[328258940,1717113040958,-1185.28256148,0.00032694,2]
[328258941,1717113040967,-178.25893544,0.00032723,7]
[328258942,1717113040976,-218.1886871,0.00032749,7]
[328258944,1717113040985,-1500.0,0.00032763,2]
[328258946,1717113040994,-2005.8594,0.00032769,2]
[328258947,1717113041003,-9908.9613,0.00032775,2]
[328258948,1717113041013,-7500.0,0.00032776,2]
[328258949,1717113041022,-196.46256548,0.00032776,4]
[328258950,1717113041032,-1500.0,0.00032776,2]
[328258951,1717113041042,-166.86055701,0.00032776,2]
[328258952,1717113041051,-199.52249069,0.00032776,2]
[328258953,1717113041060,-320.11957992,0.00032776,2]
[328258954,1717113041069,-150.93638149,0.00032776,10]
[328258955,1717113041078,-3184.61332545,0.00032776,10]
[328258956,1717113041087,-311.8,0.000328,2]
[328258957,1717113041097,-1007.76,0.000328,2]
[328258958,1717113041107,-150.0,0.000328,7]
[328258959,1717113041116,-152.26216797,0.0003281,7]
[328258960,1717113041125,-430.56,0.00032813,10]
[328258961,1717113041135,-196.46256545,0.00032815,4]
[328258962,1717113041145,-3184.61332543,0.00032823,10]
[328258963,1717113041154,-150.93638141,0.00032829,10]
[328258964,1717113041164,-516.67,0.00032833,10]
[328258965,1717113041173,-199.52249064,0.00032837,2]
[328258966,1717113041183,-620.01,0.00032843,10]
[328258967,1717113041194,-196.46256545,0.00032853,4]
[328258968,1717113041204,-178.25893544,0.00032858,7]
[328258969,1717113041213,-4046.93862411,0.0003286,30]
[328258970,1717113041223,-340.79441508,0.00032861,7]
[328258971,1717113041233,-184.62,0.00032866,2]
[328258972,1717113041243,-4249.2999274,0.00032869,2]
[328258973,1717113041253,-1360.5269886,0.00032869,2]
[328258974,1717113041262,-1237.4112016,0.00032869,2]
[328258975,1717113041272,-3327.9918091,0.00032869,2]
[328258976,1717113041282,-66721.833806,0.00032869,2]
[328258977,1717113041291,-2194.8068089,0.00032869,2]
[328258978,1717113041300,-3184.61332543,0.0003287,10]
[328258979,1717113041310,-453.14221338,0.00032873,2]
[328258980,1717113041319,-155.0,0.00032874,4]
[328258981,1717113041330,-786.76587784,0.00032874,4]
[328258982,1717113041339,-333.71521228,0.00032874,2]
[328258983,1717113041349,-5000.0,0.00032874,7]
[328258984,1717113041359,-530.20472803,0.00032874,4]